fUSD/lending_fUSD_20240614
["ID","MTS","AMOUNT","RATE_DAILY","PERIOD"]
[329448379,1718365852141,-162.91680933,0.00023878,2]
[329448380,1718365852175,-18006.65431933,0.00023878,2]
[329448381,1718365852189,-208.99062426,0.00023879,2]
[329448382,1718365852213,-1561.01772621,0.00023879,2]
[329448383,1718365852226,-10748.79092392,0.00023879,2]
[329448384,1718365852242,-151.0,0.00023879,7]
[329448385,1718365852281,-151.0,0.00023879,7]
[329448386,1718365852307,-155.881911,0.00023879,7]
[329448387,1718365852318,-151.0,0.00023879,7]
[329448388,1718365852329,-151.0,0.00023879,7]
[329448389,1718365852341,-151.0,0.00023879,7]
[329448390,1718365852361,-151.0,0.00023879,7]
[329448391,1718365852373,-151.0,0.00023879,7]
[329448392,1718365852383,-151.0,0.00023879,7]
[329448393,1718365852397,-151.0,0.00023879,7]
[329448394,1718365852410,-151.0,0.00023879,7]
[329448395,1718365852441,-151.0,0.00023879,7]
[329448396,1718365852473,-151.0,0.00023879,7]
[329448397,1718365852509,-151.0,0.00023879,7]
[329448398,1718365852520,-151.0,0.00023879,7]
[329448399,1718365852532,-151.0,0.00023879,7]
[329448400,1718365852544,-151.0,0.00023879,7]
[329448401,1718365852557,-151.0,0.00023879,7]
[329448402,1718365852572,-151.0,0.00023879,7]
[329448403,1718365852583,-151.0,0.00023879,7]
[329448404,1718365852596,-151.0,0.00023879,7]
[329448405,1718365852618,-151.0,0.00023879,7]
[329448406,1718365852629,-151.0,0.00023879,7]
[329448407,1718365852641,-151.0,0.00023879,7]
[329448408,1718365852653,-462701.41412873,0.0002388,2]
[329448409,1718365853682,-273.63085231,0.0002378,2]
[329448410,1718365853698,-20.90553777,0.0002378,2]
[329448411,1718365853710,-1320.09878623,0.0002388,2]
[329448412,1718365853830,-626.86484445,0.0002388,2]
[329448413,1718365853870,-4652.77991812,0.0002388,2]
[329448414,1718365853898,-6772.151,0.0002388,2]
[329448415,1718365853990,-645.19282453,0.0002388,2]
[329448416,1718365854016,-451.31991333,0.0002388,2]
[329448417,1718365854152,-335.35420058,0.0002388,2]
[329448418,1718365854283,-1065.18041574,0.0002388,2]
[329448419,1718366080735,312.06488343,0.00028,90]
[329448420,1718366176184,312.06488343,0.00028,90]
[329448421,1718366314041,3650.0,0.000181,10]
[329448422,1718366459257,-223.9031,0.00010164,2]
[329448423,1718366596602,4776.0969,0.00010164,2]
[329448441,1718367033107,-293.0,9.891e-05,2]
[329448442,1718367033122,-531.8764862,9.892e-05,2]
[329448443,1718367033137,-111.11984374,9.892e-05,2]
[329448444,1718367033171,-408.04710301,9.892e-05,2]
[329448445,1718367033182,-1797.10048453,9.893e-05,2]
[329448446,1718367033195,-1797.10048453,9.894e-05,2]
[329448447,1718367033240,-2001.18032223,9.895e-05,2]
[329448448,1718367033252,-338.79288601,9.895e-05,2]
[329448449,1718367033280,-2311.66624437,9.895e-05,2]
[329448450,1718367033369,-5873.53360422,9.895e-05,2]
[329448451,1718367033742,-5004.6558791,9.895e-05,2]
[329448452,1718367033752,-300.0,9.899e-05,2]
[329448453,1718367033762,-150.0,9.9e-05,2]
[329448454,1718367033794,-150.0,9.9e-05,2]
[329448455,1718367033816,-886.64940994,9.908e-05,2]
[329448456,1718367033837,-886.64940994,9.908e-05,2]
[329448457,1718367033850,-886.64940994,9.908e-05,2]
[329448458,1718367033869,-39214.81,0.00010059,2]
[329448459,1718367033892,-707.28,0.00010059,2]
[329448460,1718367033910,-3744.86956347,0.00010061,2]
[329448461,1718367033936,-5144.13749604,0.00010062,2]
[329448462,1718367033949,-16156.8672,0.00010062,2]
[329448463,1718367033993,-2370.1801588,0.00010162,2]
[329448464,1718367034021,-296.99860786,0.00010162,2]
[329448465,1718367034034,-2876.7221975,0.00010163,2]
[329448466,1718367034046,-62058.30623478,0.00010163,2]
[329448467,1718367034124,-11645.63491446,0.00010164,2]
[329448468,1718367034156,-301.37422584,0.00010164,2]
[329448469,1718367034185,-9690.06653882,0.00010164,2]
[329448470,1718367034199,-149824.52546809,0.00010164,2]
[329448471,1718367034215,-380.03886704,0.00010164,2]
[329448472,1718367034238,-317.65,0.00010164,2]
[329448473,1718367034294,-6706.1,0.00010164,2]
[329448474,1718367034612,-1647.10744656,0.00010164,2]
[329448475,1718367035069,-12429.9452424,0.00010164,2]
[329448476,1718367035093,-869.2279589,0.00010164,2]
[329448477,1718367035132,-165.94626828,0.00010164,2]
[329448478,1718367035156,-139.05373172,0.00010164,2]
[329448479,1718367035200,-180.76997474,0.00010164,2]
[329448480,1718367035250,-4762.60503946,0.00010164,2]
[329448481,1718367035262,-378.45627863,0.00010164,2]
[329448482,1718367035280,-295.28444333,0.00010164,2]
[329448483,1718367035291,-676.0,0.00010164,2]
[329448484,1718367035302,-420.0,0.00010889,2]
[329448485,1718367035320,-210.0,0.0001089,2]
[329448486,1718367035339,-210.0,0.0001089,2]
[329448487,1718367035350,-690.48,0.00010959,2]
[329448488,1718367035362,-153.0,0.00011978,2]
[329448489,1718367035373,-293.0,0.00011979,2]
[329448490,1718367035384,-153.73,0.00012533,2]
[329448491,1718367035395,-725.45946578,0.00012533,2]
[329448492,1718367035414,-797.37400748,0.00012533,2]
[329448493,1718367035433,-819.28,0.00012533,2]
[329448497,1718367038977,-500.24352524,0.00012533,2]
[329448498,1718367039320,-6954.3,0.00012533,2]
[329448499,1718367039586,-1115.92565592,0.00012533,2]
[329448500,1718367040355,-12987.41734558,0.00012533,2]
[329448501,1718367040366,-153.73,0.00012539,2]
[329448502,1718367040380,-153.73,0.00012545,2]
[329448503,1718367040408,-153.73,0.00012552,2]
[329448504,1718367040440,-153.73,0.00012558,2]
[329448505,1718367040458,-153.73,0.00012564,2]
[329448506,1718367040483,-153.73,0.0001257,2]
[329448507,1718367040497,-153.73,0.00012577,2]
[329448508,1718367040515,-153.73,0.00012583,2]
[329448509,1718367040540,-153.73,0.00012589,2]
[329448510,1718367040568,-153.73,0.00012596,2]
[329448511,1718367040585,-618.90474538,0.000129,2]
[329448512,1718367040607,-618.90474533,0.000129,2]
[329448513,1718367040626,-3178.85658399,0.00013899,2]
[329448514,1718367040657,-18108.74771601,0.00013899,2]
[329448515,1718367040685,-2487.9464448,0.00014,2]
[329448516,1718367040706,-618.90474533,0.00014831,2]
[329448517,1718367040718,-174.1,0.00015831,2]
[329448518,1718367040754,-400.0,0.00017046,2]
[329448519,1718367040798,-300.0,0.00017158,2]
[329448520,1718367040832,-618.90474533,0.00017215,2]
[329448521,1718367040872,-408.36562215,0.00017258,2]
[329448522,1718367040896,-365.45085217,0.00017259,2]
[329448523,1718367040913,-1310.78494006,0.00017259,2]
[329448524,1718367040927,-1101.84185067,0.00017738,2]
[329448525,1718367040954,-513.08937866,0.00017738,2]
[329448526,1718367040983,-516.28761059,0.00017738,2]
[329448527,1718367041012,-155.0,0.000181,2]
[329448529,1718367041028,-1043.57163077,0.000181,2]
[329448531,1718367041043,-174.1,0.00018444,2]
[329448534,1718367041061,-1852.42,0.0001854,2]
[329448536,1718367041077,-553.04,0.00018742,2]
[329448538,1718367041089,-330.12784945,0.00019178,2]
[329448540,1718367041101,-618.90474533,0.00019598,2]
[329448542,1718367041124,-250.0,0.0001997,2]
[329448544,1718367041138,-800.0,0.00020136,2]
[329448546,1718367041148,-376.5573476,0.00020136,2]
[329448548,1718367041179,-367.18970664,0.00020136,2]
[329448551,1718367041253,-1056.25294576,0.00020136,2]
[329448552,1718367041266,-3889.28081796,0.00020431,2]
[329448553,1718367041422,-728.49063408,0.00020431,2]
[329448554,1718367041442,-800.0,0.00020684,2]
[329448555,1718367041452,-1800.0,0.00020684,2]
[329448556,1718367041468,-553.04,0.00021006,2]
[329448557,1718367041478,-167.0,0.00021016,2]
[329448558,1718367041498,-800.0,0.00021232,2]
[329448559,1718367041510,-1800.0,0.00021232,2]
[329448560,1718367041523,-500.0,0.00021232,2]
[329448561,1718367041543,-500.0,0.00021506,2]
[329448562,1718367041557,-500.0,0.00021506,2]
[329448563,1718367041568,-800.0,0.0002178,2]
[329448564,1718367041586,-1800.0,0.0002178,2]
[329448565,1718367041597,-618.90474533,0.00021982,2]
[329448566,1718367041608,-800.0,0.00022328,2]
[329448567,1718367041621,-1800.0,0.00022328,2]
[329448569,1718367041673,-500.0,0.00022602,2]
[329448571,1718367041688,-500.0,0.00022602,2]
[329448573,1718367041700,-800.0,0.00022876,2]
[329448575,1718367041723,-1800.0,0.00022876,2]
[329448576,1718367041736,-151.0,0.00023001,2]
[329448577,1718367041753,-553.04,0.0002327,2]
[329448578,1718367041783,-338.50142618,0.00023367,2]
[329448579,1718367041810,-263.84998264,0.00023367,2]
[329448580,1718367041838,-209.22951034,0.00023367,2]
[329448581,1718367041859,-800.0,0.00023424,2]
[329448582,1718367041877,-200.0,0.00023669,2]
[329448583,1718367041888,-500.0,0.00023689,2]
[329448584,1718367041919,-500.0,0.00023698,2]
[329448585,1718367041940,-500.0,0.00023698,2]
[329448586,1718367041953,-258.12664717,0.00023779,2]
[329448587,1718367041979,-193.73200982,0.0002378,2]
[329448588,1718367042032,-177.19302389,0.0002378,2]
[329448589,1718367042052,-16614.47202041,0.0002378,2]
[329448590,1718367042064,-154.20198687,0.0002378,2]
[329448591,1718367042074,-219.48903515,0.0002378,2]
[329448592,1718367042096,-485.0933642,0.0002378,2]
[329448593,1718367042121,-617.2895055,0.000238,2]
[329448594,1718367042160,-489.0,0.000238,7]
[329448595,1718367042190,-589.0,0.000238,7]
[329448596,1718367042245,-305.0,0.000238,2]
[329448597,1718367042269,-611.0,0.000238,2]
[329448598,1718367042293,-180.0,0.000238,7]
[329448599,1718367042304,-150.0,0.000238,4]
[329448600,1718367042318,-152.2,0.00023868,2]
[329448601,1718367042328,-77.17280998,0.0002387,2]
[329448617,1718367043224,-75.02719002,0.0002387,2]
[329448618,1718367043236,-152.2,0.0002387,2]
[329448619,1718367043251,-152.2,0.0002387,2]
[329448620,1718367043263,-295.5279735,0.00023874,2]
[329448621,1718367043273,-191.8040708,0.00023874,2]
[329448622,1718367043284,-4493.68633917,0.00023874,2]
[329448623,1718367045630,-23076.96819113,0.00023874,2]
[329448624,1718367045663,-1801.3960356,0.00023874,2]
[329448625,1718367045680,-522.77413562,0.00023876,2]
[329448626,1718367045693,-787.77448927,0.00023876,2]
[329448627,1718367045708,-156.78906714,0.00023876,2]
[329448628,1718367045724,-1492.93324654,0.00023876,2]
[329448629,1718367045739,-366.5524933,0.00023877,2]
[329448630,1718367045753,-273.75598234,0.00023877,2]
[329448631,1718367045767,-500.0,0.00023877,2]
[329448632,1718367045780,-650.53078631,0.00023878,2]
[329448633,1718367045795,-688.78661675,0.00023878,2]
[329448634,1718367045812,-792.46810918,0.00023878,2]
[329448635,1718367045848,-865.36098931,0.00023878,2]
[329448636,1718367045860,-495.67127541,0.00023878,2]
[329448637,1718367045881,-155.08913487,0.00023878,2]
[329448638,1718367045904,-436.84108596,0.00023878,2]
[329448639,1718367045931,-5000.0,0.00023878,2]
[329448640,1718367045966,-85595.72258205,0.00023878,2]
[329448641,1718367046453,-274.7021428,0.00017259,2]
[329448642,1718367046468,-244.35438425,0.00017259,2]
[329448643,1718367046486,-506.36561576,0.00023878,2]
[329448644,1718367046520,-1125.42693518,0.00023878,2]
[329448645,1718367046560,-1862.54423238,0.00023878,2]
[329448646,1718367046717,-5021.01278894,0.00023878,2]
[329448647,1718367046817,-1000.0,0.00023878,2]
[329448648,1718367046902,-7268.21102522,0.00023878,2]
[329448649,1718367047129,-330491.92685138,0.00023878,2]
[329448651,1718367047141,-1040.67848414,0.00023879,2]
[329448654,1718367047160,-10172.05896658,0.0002388,2]
[329448685,1718367048354,-634.1177905,0.00010164,2]
[329448784,1718367053437,-0.0045226,0.00010164,2]
[329448785,1718367053527,-2504.40030612,0.00010164,2]
[329448786,1718367053591,-338.72471674,0.00017259,2]
[329448787,1718367053603,-344.20219896,0.00023779,2]
[329448788,1718367053614,-982.12531653,0.00023879,2]
[329448789,1718367053635,-814.975168,0.00023879,2]
[329448790,1718367053657,-530.42375266,0.00023879,2]
[329448791,1718367053699,-693.78565609,0.00023879,2]
[329448792,1718367053712,-2185.98461291,0.0002388,2]
[329448793,1718367053763,-2248.6199641,0.0002388,2]
[329448794,1718367054317,-552089.00165531,0.0002388,2]
[329448797,1718368147203,-2883.6447,9.794e-05,2]
[329448798,1718368147257,-17.8101,9.794e-05,2]
[329448805,1718368233622,-138.53374868,9.794e-05,2]
[329448806,1718368233633,-362.81476569,0.00010164,2]
[329448807,1718368233652,-2487.9464448,0.00014,2]
[329448808,1718368233669,-942.89791342,0.00014566,2]
[329448809,1718368233681,-885.3919522,0.00014568,2]
[329448810,1718368233693,-156.34384868,0.00015533,2]
[329448811,1718368233716,-167.99,0.00017085,2]
[329448812,1718368233728,-300.0,0.00017807,2]
[329448813,1718368233762,-420.0,0.00019588,2]
[329448814,1718368233788,-65.56465371,0.00019596,2]
[329448815,1718368233858,-599.01534629,0.00019596,2]
[329448816,1718368233893,-446.827131,0.00020803,2]
[329448817,1718368233905,-3674.91,0.00020908,2]
[329448818,1718368233917,-2106.59081434,0.00021222,2]
[329448819,1718368233937,-2852.80510775,0.00021222,2]
[329448820,1718368233991,-966.43463374,0.00021222,2]
[329448821,1718368234024,-463.61871879,0.00021222,2]
[329448822,1718368234039,-739.69628748,0.00021222,2]
[329448823,1718368234078,-11507.1744379,0.00021222,2]
[329448824,1718368234108,-156.34384868,0.00021371,2]
[329448825,1718368234130,-250.0,0.00021471,2]
[329448826,1718368234142,-1000.0,0.00021506,2]
[329448827,1718368234154,-866.48292433,0.00021566,3]
[329448828,1718368234174,-664.58,0.0002186,2]
[329448829,1718368234198,-1000.0,0.00022054,2]
[329448830,1718368234249,-314.82813199,0.00022602,2]
[329448831,1718368234271,-500.0,0.00022602,2]
[329448832,1718368234288,-500.0,0.00022602,2]
[329448833,1718368234302,-1000.0,0.00022602,2]
[329448834,1718368234316,-300.0,0.00023131,2]
[329448835,1718368234337,-500.0,0.0002315,2]
[329448836,1718368234376,-1000.0,0.0002315,2]
[329448837,1718368234387,-417.77,0.00023151,2]
[329448838,1718368234398,-417.77,0.00023151,2]
[329448839,1718368234409,-417.77,0.00023151,2]
[329448840,1718368234438,-417.77,0.00023151,2]
[329448841,1718368234464,-417.77,0.00023151,2]
[329448842,1718368234475,-440.48,0.00023151,2]
[329448843,1718368234496,-1070.93353786,0.00023402,2]
[329448844,1718368234507,-1102.00799313,0.00023402,2]
[329448845,1718368234524,-300.0,0.00023435,2]
[329448846,1718368234534,-1289.05858059,0.00023688,2]
[329448847,1718368234546,-200.0,0.00023689,2]
[329448848,1718368234569,-500.0,0.00023698,2]
[329448849,1718368234581,-500.0,0.00023698,2]
[329448850,1718368234600,-1000.0,0.00023698,2]
[329448851,1718368234611,-1312.354245,0.000237,2]
[329448852,1718368234622,-300.0,0.00023739,2]
[329448853,1718368234634,-15229.93268533,0.0002378,2]
[329448854,1718368234644,-154.72618635,0.0002378,2]
[329448855,1718368234667,-344.20219896,0.0002378,2]
[329448856,1718368234679,-489.0,0.000238,7]
[329448857,1718368234691,-305.0,0.000238,2]
[329448858,1718368234702,-611.0,0.000238,2]
[329448859,1718368234714,-150.0,0.000238,4]
[329448860,1718368234744,-150.0,0.00023814,2]
[329448861,1718368234760,-152.2,0.0002387,2]
[329448862,1718368234784,-152.2,0.0002387,2]
[329448863,1718368234808,-205.2277593,0.00023874,2]
[329448864,1718368234819,-246.2733117,0.00023874,2]
[329448865,1718368234848,-13649.07157676,0.00023874,2]
[329448866,1718368235187,-6295.38724284,0.00023874,2]
[329448867,1718368235198,-719.002382,0.00023874,2]
[329448868,1718368235209,-366.57457367,0.00023878,2]
[329448869,1718368235219,-462.52377073,0.00023879,2]
[329448870,1718368235231,-157.0939257,0.00023879,2]
[329448871,1718368235241,-331.60970672,0.00023879,2]
[329448872,1718368235255,-514.77869025,0.00023879,2]
[329448873,1718368235268,-1000.0,0.00023879,5]
[329448874,1718368235283,-246.15590618,0.00023879,5]
[329448875,1718368235297,-109975.11952804,0.0002388,2]
[329448876,1718368235449,-968.08911481,0.0002388,2]
[329448877,1718368235483,-7143.38090476,0.0002388,2]
[329448878,1718368235557,-1146.25008292,0.0002388,2]
[329448879,1718368235570,-353.79,0.0002388,2]
[329448935,1718368239940,-2702.22081626,0.0002388,2]
[329448936,1718368240227,-207.48520993,0.0002387,2]
[329448937,1718368240253,-53.77262406,0.0002388,2]
[329448938,1718368240328,-11064.64326729,0.0002388,2]
[329448950,1718368240546,-4259.9738215,0.0002388,2]
[329448953,1718368240568,-312.38811295,0.0002388,2]
[329449040,1718368244730,-797.48529869,0.00023402,2]
[329449041,1718368244852,-241.16974856,0.00023402,2]
[329449042,1718368244866,-308.34918049,0.00023879,2]
[329449043,1718368244886,-551539.48272626,0.0002388,2]
[329449044,1718368244899,-6644.55524363,0.0002388,2]
[329449045,1718368244924,-49346.20842744,0.0002388,2]
[329449046,1718368245277,-748.724,0.0002388,2]
[329449047,1718368245749,-1211.25875993,0.0002388,2]
[329449048,1718368245927,-31376.87120152,0.0002388,2]
[329449049,1718368245943,-167389.37512855,0.0002388,2]
[329449050,1718368246562,-444.24779552,0.0002388,2]
[329449051,1718368246595,-3205.36945857,0.0002388,2]
[329449052,1718368246626,-1883.15914355,0.0002388,2]
[329449053,1718368246785,-524386.52822631,0.0002388,2]
[329449054,1718368246814,-9194.5984727,0.0002388,7]
[329449055,1718368246842,-8127.92139316,0.0002388,7]
[329449056,1718368246854,-72597.95434351,0.0002388,2]
[329449057,1718368246878,-7083.93025607,0.0002388,2]
[329449058,1718368246896,-259.8,0.0002388,2]
[329449060,1718368247538,-27785.99999997,0.0002388,2]
[329449061,1718368247556,-8889.91640812,0.0002388,2]
[329449062,1718368247573,-5956.50683529,0.0002388,2]
[329449070,1718368248158,-918.75679,0.0002388,2]
[329449071,1718368248195,-1523.78274965,0.0002388,2]
[329449072,1718368248208,-19463.31778717,0.0002388,2]
[329449073,1718368248339,-4077.11133611,0.0002388,2]
[329449074,1718368248352,-155.0,0.0002388,2]
[329449075,1718368248365,-500.0,0.0002388,2]
[329449076,1718368248385,-1043.57163077,0.0002388,2]
[329449077,1718368248398,-299.86157995,0.0002388,2]
[329449078,1718368248420,-6814.15548072,0.0002388,2]
[329449079,1718368248540,-371.92879527,0.0002388,2]
[329449080,1718368248916,-2197.79675111,0.0002388,2]
[329449081,1718368249704,-250.10479714,0.00023879,2]
[329449082,1718368249851,-695.52519607,0.00023879,2]
[329449134,1718368251847,-1542.31645159,0.00023879,2]
[329449135,1718368251869,-44086.30248208,0.0002388,2]
[329449136,1718368252364,-1651.18662485,0.0002388,2]
[329449144,1718368519665,1500.0,0.00026849,60]
[329449145,1718368519951,1500.0,0.00027123,60]
[329449159,1718368878394,-511.0,9.793e-05,2]
[329449160,1718368878492,-89.0,9.794e-05,2]
[329449164,1718369058052,-18253.04067212,9.793e-05,2]
[329449165,1718369058280,-858.931432,9.794e-05,2]
[329449166,1718369058347,-2227.97824149,9.794e-05,2]
[329449167,1718369058398,-348.12051572,9.794e-05,2]
[329449168,1718369058464,-300.0,0.00011799,2]
[329449169,1718369058542,-14628.89718656,0.000118,2]
[329449170,1718369074011,197.59996188,9.794e-05,2]
[329449171,1718369127704,155.0,9.794e-05,2]
[329449172,1718369129908,403.04351233,9.794e-05,2]
[329449173,1718369130744,256.33526685,9.794e-05,2]
[329449174,1718369131548,155.0,9.794e-05,2]
[329449175,1718369134243,155.0,9.794e-05,2]
[329449176,1718369135746,410.89401693,0.0001,2]
[329449177,1718369155491,238.12068345,9.794e-05,2]
[329449180,1718369172067,1500.0,0.00026849,60]
[329449181,1718369172325,1500.0,0.00027123,60]
[329449182,1718369182782,4795.07046278,0.0001,2]
[329449183,1718369198177,-292.40653911,0.0001,2]
[329449200,1718369433141,-1324.76351156,0.0001,2]
[329449201,1718369433366,-571.61940899,0.0001,2]
[329449202,1718369433382,-909.67996557,0.0001,2]
[329449203,1718369433412,-923.72099075,0.0001,2]
[329449204,1718369433460,-628.12349577,0.0001,2]
[329449205,1718369434130,-79712.35467849,0.0001,2]
[329449206,1718369434145,-9768.13277904,0.0001,2]
[329449207,1718369434251,-7042.55464418,0.0001,2]
[329449208,1718369434272,-55629.6104267,0.0001,2]
[329449209,1718369434291,-2484.89613103,0.000138,2]
[329449210,1718369434318,-177.76126797,0.000139,2]
[329449211,1718369434336,-8335.3384,0.000139,2]
[329449212,1718369434363,-15740.31265556,0.000139,2]
[329449213,1718369434386,-346.13164985,0.000139,2]
[329449214,1718369434452,-197.12003853,0.000139,2]
[329449215,1718369434468,-308.69959898,0.000139,2]
[329449216,1718369434498,-150.0,0.00013973,2]
[329449217,1718369434516,-152.16,0.0001399,2]
[329449218,1718369434530,-152.16,0.0001399,2]
[329449219,1718369434544,-152.16,0.0001399,2]
[329449220,1718369434564,-522.92042804,0.00013998,2]
[329449221,1718369434590,-363.17338025,0.00013998,2]
[329449222,1718369434613,-525.69562197,0.00013999,2]
[329449223,1718369434625,-21727.36040112,0.00014,2]
[329449225,1718369434969,-521.36640746,0.00014,2]
[329449228,1718369434982,-28995.05783192,0.00014,2]
[329449230,1718369434994,-202489.47078365,0.00014,2]
[329449241,1718369435154,-2259.47975856,0.00014,2]
[329449243,1718369435171,-800.0,0.00014,2]
[329449246,1718369435187,-582.92504737,0.00014,2]
[329449280,1718369439193,-470.79451812,0.00014,2]
[329449282,1718369439948,-20812.95999996,0.00014,2]
[329449283,1718369440215,-196030.91769239,0.00014,2]
[329449284,1718369440250,-203969.08230761,0.00014,2]
[329449285,1718369440287,-5151.53400738,0.00014,2]
[329449286,1718369440420,-2461.48218745,0.00014,2]
[329449287,1718369440446,-1943.4116317,0.00014,2]
[329449288,1718369440490,-1186.88992463,0.00014,2]
[329449308,1718369443416,-308779.81997946,0.00014,2]
[329449310,1718369444043,-964.98446827,0.00014,2]
[329449331,1718369446753,-2807.32980616,0.00014,2]
[329449333,1718369446811,-299.39995081,0.00014,2]
[329449344,1718369447918,-34541.45863688,0.00014,2]
[329449345,1718369447991,-11347.67224381,0.00014,2]
[329449346,1718369448825,-12864.008,0.00014,2]
[329449347,1718369448839,-552089.00165531,0.00014,2]
[329449348,1718369449654,-418.71814163,0.00014,2]
[329449355,1718369766246,1500.0,0.00026849,60]
[329449356,1718369766529,1500.0,0.00027123,60]
[329449366,1718370409685,1500.0,0.00026849,60]
[329449367,1718370409872,1500.0,0.00027123,60]
[329449380,1718370634588,-536.7196223,9.855e-05,2]
[329449381,1718370634606,-145.95142055,9.856e-05,2]
[329449382,1718370634622,-1648.08599706,9.856e-05,2]
[329449383,1718370634634,-588.60914316,9.856e-05,2]
[329449384,1718370634660,-933.31111288,9.856e-05,2]
[329449385,1718370634683,-479.26006619,9.856e-05,2]
[329449386,1718370634697,-239.761882,9.863e-05,2]
[329449387,1718370634718,-60.238118,9.863e-05,2]
[329449388,1718370634750,-586.09728862,9.898e-05,2]
[329449389,1718370634765,-2082.5,9.898e-05,2]
[329449390,1718370634910,-215.04741138,9.898e-05,2]
[329449391,1718370634923,-300.0,0.00010849,2]
[329449392,1718370634949,-163.85,0.00012674,2]
[329449393,1718370634964,-11971.6003,0.000139,2]
[329449394,1718370634980,-19233.50230462,0.000139,2]
[329449395,1718370635006,-98913.64149538,0.000139,2]
[329449396,1718370635036,-164.38482657,0.000139,2]
[329449397,1718370635053,-16143.39226535,0.000139,2]
[329449398,1718370635078,-156.35356322,0.000139,2]
[329449399,1718370635089,-346.13164984,0.000139,2]
[329449400,1718370635130,-154.72618633,0.000139,2]
[329449401,1718370635155,-4140.55932962,0.00013985,2]
[329449402,1718370635166,-152.14,0.0001399,2]
[329449403,1718370635178,-157.75831803,0.00013998,2]
[329449404,1718370635191,-328.78739308,0.00013998,2]
[329449405,1718370635212,-1181.47356857,0.00013998,2]
[329449406,1718370635231,-207.63727306,0.00013998,2]
[329449407,1718370635252,-400.0,0.00013998,2]
[329449408,1718370635266,-206.14054789,0.00013999,2]
[329449409,1718370635285,-306494.56557038,0.00014,2]
[329449410,1718370635570,-4972.87973051,0.00014,2]
[329449412,1718370635819,-307.8334,0.00014,2]
[329449425,1718370639999,-327.7311788,0.00014,2]
[329449426,1718370640171,-130506.21290171,0.00014,2]
[329449427,1718370640455,-3646.45277639,0.00014,2]
[329449428,1718370640474,-4005.68603396,0.00014,2]
[329449429,1718370640500,-4264.85327721,0.00014,2]
[329449430,1718370640524,-17390.96685064,0.00014,2]
[329449431,1718370640825,-203969.08230761,0.00014,2]
[329449433,1718370640848,-63100.1117437,0.00014,2]
[329449435,1718370640864,-14000.61551684,0.00014,2]
[329449445,1718370641090,-301.28802566,0.00014,2]
[329449446,1718370641490,-3468.7737,0.00014,2]
[329449535,1718370646851,-716.29558,0.00014,2]
[329449537,1718370646875,-120466.99420055,0.00014,2]
[329449547,1718370647469,-5471.61254214,0.00014,2]
[329449548,1718370648198,-1797.10048453,0.00013999,2]
[329449549,1718370648215,-366397.7921385,0.00014,2]
[329449550,1718370648226,-2487.9464448,0.00014,2]
[329449551,1718370648256,-568.01986199,0.00014,2]
[329449552,1718370648277,-1713.47286,0.00014,2]
[329449553,1718370648290,-694.45,0.00014295,2]
[329449554,1718370648316,-538.34,0.00014555,2]
[329449555,1718370648330,-165.84,0.00014797,2]
[329449556,1718370648345,-560.97,0.00014813,2]
[329449557,1718370648356,-299.99,0.0001499,2]
[329449558,1718370648373,-152.14,0.0001499,2]
[329449559,1718370648391,-702076.39947536,0.00015,2]
[329449561,1718370648416,-165.84,0.00015054,2]
[329449563,1718370648453,-165.38,0.00015058,2]
[329449565,1718370648471,-16143.39226526,0.00015282,2]
[329449566,1718370648485,-165.84,0.00015311,2]
[329449567,1718370648516,-165.84,0.00015568,2]
[329449568,1718370648537,-9470.44,0.00015586,2]
[329449569,1718370648551,-154.72618633,0.0001595,2]
[329449570,1718370648564,-250.0,0.00015955,2]
[329449571,1718370648578,-548.17,0.00016374,2]
[329449572,1718370648602,-694.45,0.00016559,2]
[329449573,1718370648617,-16143.39226526,0.00016664,2]
[329449574,1718370648631,-3100.0,0.000173,2]
[329449575,1718370648652,-870.0,0.000173,2]
[329449576,1718370648666,-591.81377136,0.0001791,2]
[329449579,1718370648681,-154.72618633,0.00018,2]